bitfinex/quotes_ETHUSD_20250806
["timestamp","ask_amount","ask_price","bid_price","bid_amount"]
[1754506037318,3.0,3679.3,3679.0,0.4494]
[1754506037482,3.0,3679.1,3679.0,0.002]
[1754506038110,3.0,3679.1,3679.0,3.17962992]
[1754506038631,3.0,3679.1,3679.0,3.62702992]
[1754506038836,3.136,3679.1,3679.0,3.62702992]
[1754506040731,3.136,3679.1,3679.0,2.72012992]
[1754506040915,3.136,3679.1,3679.0,0.002]
[1754506042137,3.136,3679.1,3679.0,2.72012992]
[1754506043599,3.136,3679.1,3679.0,0.002]
[1754506045738,3.602,3679.1,3679.0,0.002]
[1754506046325,4.69862351,3679.1,3679.0,0.002]
[1754506046527,5.16302351,3679.1,3679.0,0.002]
[1754506047445,12.34302351,3679.1,3679.0,0.002]
[1754506048256,15.06107955,3679.1,3679.0,0.002]
[1754506048408,12.34302351,3679.1,3679.0,0.002]
[1754506049234,15.06107955,3679.1,3679.0,0.002]
[1754506049572,11.87862351,3679.1,3679.0,0.002]
[1754506049858,15.06107955,3679.1,3679.0,0.002]
[1754506050212,12.34302351,3679.1,3679.0,0.002]
[1754506050717,14.59667955,3679.1,3679.0,0.002]
[1754506051248,11.87862351,3679.1,3679.0,0.002]
[1754506052176,10.316,3679.1,3679.0,0.002]
[1754506052358,14.488,3679.1,3679.0,0.002]
[1754506052931,14.488,3679.1,3679.0,3.63402992]
[1754506053162,14.488,3679.1,3679.0,0.4574]
[1754506053366,14.488,3679.1,3679.0,0.002]
[1754506053870,14.488,3679.1,3679.0,2.72012992]
[1754506054072,10.316,3679.1,3679.0,3.63402992]
[1754506054291,0.136,3679.2,3679.0,1.55112438]
[1754506054634,4.171,3679.1,3679.0,3.3553543]
[1754506054790,0.001,3679.8,3679.0,3.3553543]
[1754506054942,0.136,3679.4,3679.3,2.71790829]
[1754506055142,0.001,3679.8,3679.7,2.71761284]
[1754506055686,0.001,3679.8,3679.7,3.63151284]
[1754506056484,0.001,3679.8,3679.7,3.76751284]
[1754506057594,0.001,3679.8,3679.7,2.85361284]
[1754506058094,0.001,3679.8,3679.7,3.30901284]
[1754506058715,0.001,3679.8,3679.7,3.76751284]
[1754506060090,0.001,3679.8,3679.7,4.68781754]
[1754506060611,1e-08,3679.8,3679.7,4.68781754]
[1754506066207,1e-08,3679.8,3679.7,2.85361284]
[1754506066405,0.91000001,3679.8,3679.7,2.71761284]
[1754506066715,0.46690001,3679.8,3679.7,2.71761284]
[1754506066914,1e-08,3679.8,3679.7,2.71761284]
[1754506067711,1e-08,3679.8,3679.7,3.76751284]
[1754506068085,1e-08,3679.8,3679.7,2.85361284]
[1754506068414,1e-08,3679.8,3679.7,2.71761284]
[1754506068584,0.91000001,3679.8,3679.7,2.71761284]
[1754506071807,0.46690001,3679.8,3679.7,2.71761284]
[1754506072017,1e-08,3679.8,3679.7,2.71761284]
[1754506073315,1e-08,3679.8,3679.7,3.6912441]
[1754506073490,1e-08,3679.8,3679.7,4.7411441]
[1754506074099,1e-08,3679.8,3679.7,8.93032022]
[1754506074298,1e-08,3679.8,3679.7,9.4531441]
[1754506074519,0.001,3680.6,3680.5,2.71702214]
[1754506074727,0.001,3680.6,3680.5,2.98872435]
[1754506074928,0.001,3680.6,3680.5,3.12472435]
[1754506075223,0.001,3680.6,3680.5,4.06579457]
[1754506076397,0.001,3680.6,3680.5,3.15189457]
[1754506076605,0.001,3680.6,3680.5,3.12472435]
[1754506078700,0.001,3680.6,3680.5,7.28572435]
[1754506078905,0.4679,3680.6,3680.5,7.28572435]
[1754506079103,0.911,3680.6,3680.4,4.161]
[1754506079300,0.001,3680.6,3680.5,2.71702214]
[1754506079513,0.001,3680.6,3680.5,3.79409236]
[1754506079824,0.001,3680.6,3680.5,3.76692214]
[1754506080228,0.001,3680.6,3680.5,3.30842214]
[1754506080522,0.001,3680.6,3680.5,4.14358584]
[1754506082121,0.001,3680.6,3680.5,4.61418584]
[1754506082428,0.001,3680.6,3680.5,4.14358584]
[1754506082932,0.9683,3680.6,3680.5,2.71702214]
[1754506084516,0.9683,3680.6,3680.4,2.71706903]
[1754506084716,0.001,3680.6,3680.5,2.71702214]
[1754506085309,0.9683,3680.6,3680.5,2.71702214]
[1754506086211,0.001,3680.6,3680.5,2.71702214]
[1754506086431,0.9683,3680.6,3680.5,2.71702214]
[1754506087231,0.9683,3680.6,3680.4,2.71706433]
[1754506087534,0.9673,3680.5,3680.4,2.71706433]
[1754506088434,1.1033,3680.5,3680.4,2.71706433]
[1754506089539,1.1033,3680.5,3680.0,4.164]
[1754506089736,1.290979,3680.5,3680.4,2.71709596]
[1754506090040,1.426979,3680.5,3680.4,2.71709596]
[1754506090436,1.919979,3680.5,3680.4,2.71709596]
[1754506090736,1.919979,3680.5,3680.3,2.71714113]
[1754506090917,0.9673,3680.4,3680.3,2.71714113]
[1754506091117,1.1033,3680.4,3680.3,2.71714113]
[1754506093639,0.629,3680.4,3680.3,2.71714113]
[1754506093842,0.817679,3680.6,3680.5,2.71702214]
[1754506094045,1.291979,3680.6,3680.5,2.71702214]
[1754506094346,0.4753,3680.6,3680.5,2.71702214]
[1754506094847,1.1043,3680.6,3680.5,2.71702214]
[1754506095848,1.1043,3680.6,3680.0,4.3]
[1754506095849,1.1043,3680.6,3680.4,2.71708627]
[1754506096049,0.9673,3680.5,3680.4,2.71708627]
[1754506097025,0.137,3680.6,3680.5,2.71702214]
[1754506098176,0.001,3680.6,3680.5,3.75552214]
[1754506100663,0.001,3680.6,3680.5,3.78269236]
[1754506101151,0.001,3680.6,3680.5,3.32362214]
[1754506101352,0.001,3680.6,3680.5,4.34379298]
[1754506102265,0.001,3680.6,3680.5,4.77569298]
[1754506102618,1e-08,3680.6,3680.5,4.77569298]
[1754506104739,1e-08,3680.6,3680.5,5.32569298]
[1754506105042,0.001,3681.3,3681.2,2.71650548]
[1754506105242,0.001,3681.3,3681.2,6.87450548]
[1754506105419,0.001,3681.3,3681.2,8.24127388]
[1754506106643,0.9683,3681.3,3681.2,8.24127388]
[1754506107022,0.001,3681.3,3681.2,8.24127388]
[1754506107962,0.9683,3681.3,3681.2,2.71650548]
[1754506108735,0.9683,3681.3,3680.9,0.136]
[1754506109052,0.136,3681.1,3681.0,2.71660961]
[1754506109450,1.1033,3681.1,3681.0,2.71660961]
[1754506109663,0.629,3681.1,3681.0,2.71660961]
[1754506109821,0.001,3681.3,3681.2,2.71650548]
[1754506110258,0.494,3681.3,3681.2,2.71650548]
[1754506110526,0.9683,3681.3,3681.2,2.71650548]
[1754506110948,0.494,3681.3,3681.2,2.71650548]
[1754506111353,0.001,3681.3,3681.2,2.71650548]
[1754506111837,0.9505,3681.3,3681.2,2.71650548]
[1754506112578,0.4977,3681.3,3681.2,2.71650548]
[1754506112944,0.9505,3681.3,3681.2,2.71650548]
[1754506115481,0.4977,3681.3,3681.2,2.71650548]
[1754506116741,0.9505,3681.3,3681.2,2.71650548]
[1754506117661,0.4538,3681.3,3681.2,2.71650548]
[1754506117963,0.9505,3681.3,3681.2,2.71650548]
[1754506120670,0.001,3681.3,3681.2,2.71650548]
[1754506121855,0.4977,3681.3,3681.2,2.71650548]
[1754506122515,0.001,3681.3,3681.2,3.27341495]
[1754506122657,0.001,3681.3,3681.2,4.31611495]
[1754506123365,0.001,3681.3,3681.2,3.88221495]
[1754506124588,0.001,3681.3,3681.2,3.40941495]
[1754506124798,0.001,3681.3,3681.2,7.56841495]
[1754506125303,0.001,3681.3,3681.2,8.04121495]
[1754506125503,0.001,3681.3,3681.2,7.56841495]
[1754506128697,0.001,3681.3,3681.2,7.56841495]
[1754506130601,0.9505,3681.3,3681.2,7.01150548]
[1754506131466,0.4977,3681.3,3681.2,7.01150548]
[1754506132193,0.001,3681.3,3681.2,7.01150548]
[1754506135492,0.9505,3681.3,3681.2,7.01150548]
[1754506137184,0.4977,3681.3,3681.2,7.01150548]
[1754506138214,0.9505,3681.3,3681.2,7.01150548]
[1754506139278,0.4977,3681.3,3681.2,7.01150548]
[1754506139784,0.001,3681.3,3681.2,7.01150548]
[1754506140308,0.001,3681.3,3681.2,7.98451495]
[1754506141376,0.001,3681.3,3681.2,8.45301495]
[1754506141577,0.001,3681.3,3681.2,7.98451495]
[1754506142310,0.001,3681.3,3681.2,7.01150548]
[1754506143314,10.24922439,3681.3,3681.2,0.136]
[1754506143611,10.24922439,3681.3,3681.0,0.002]
[1754506143612,3.0,3681.2,3681.0,0.002]
[1754506143808,3.477,3681.2,3680.5,2.71701981]
[1754506144028,1.99847195,3681.1,3680.5,2.71701981]
[1754506144186,3.0,3681.0,3680.4,2.71707767]
[1754506144385,0.9403,3680.9,3680.2,4.161]
[1754506144584,0.9403,3680.8,3680.3,2.71716979]
[1754506144894,0.9403,3680.8,3680.2,4.161]
[1754506144895,0.9403,3680.8,3680.2,0.002]
[1754506145072,0.9403,3680.7,3680.2,2.71923325]
[1754506145395,0.9403,3680.6,3680.2,0.002]
[1754506145809,0.9403,3680.5,3680.2,0.002]
[1754506146188,0.9403,3680.4,3680.2,0.002]
[1754506146573,2.71696797,3680.6,3680.2,0.002]
[1754506146779,0.9403,3680.3,3680.2,0.002]
[1754506147993,5.0993,3680.3,3680.2,0.002]
[1754506149214,5.0993,3680.3,3680.2,2.71924362]
[1754506149388,5.0993,3680.3,3680.2,0.002]
[1754506150116,8.0993,3680.3,3680.2,0.002]
[1754506150317,9.39446244,3680.3,3680.2,0.002]
[1754506152321,9.39446244,3680.3,3680.2,2.71924362]
[1754506152631,4.159,3680.3,3680.2,2.71924362]
[1754506152812,7.158,3680.6,3680.2,2.71924362]
[1754506153125,4.6213,3680.6,3680.3,2.71714037]
[1754506153328,3.9403,3680.5,3680.2,0.002]
[1754506153533,0.94583,3680.4,3680.2,0.002]
[1754506153683,7.158,3680.3,3680.2,0.002]
[1754506153885,8.0983,3680.3,3680.2,0.002]
[1754506154115,8.2343,3680.3,3680.2,0.002]
[1754506154937,10.95146979,3680.3,3680.2,0.002]
[1754506155087,13.34370079,3680.3,3680.2,0.002]
[1754506155431,10.626531,3680.3,3680.2,0.002]
[1754506155724,8.2343,3680.3,3680.2,0.002]
[1754506156058,8.3703,3680.3,3680.2,0.002]
[1754506156220,4.2123,3680.3,3680.2,2.71924362]
[1754506156427,7.296,3680.3,3680.2,2.71924362]
[1754506156786,7.773,3680.3,3680.2,2.71924362]
[1754506157026,8.2363,3680.3,3680.2,2.71924362]
[1754506157508,7.773,3680.3,3680.2,2.71924362]
[1754506158538,8.2363,3680.3,3680.2,2.71924362]
[1754506159925,7.773,3680.3,3680.2,2.71924362]
[1754506160775,0.136,3680.3,3680.2,2.71924362]
[1754506161678,4.294,3680.3,3680.2,2.71924362]
[1754506161888,0.136,3680.3,3680.2,2.71924362]
[1754506162175,3.0,3680.5,3680.4,2.71709596]
[1754506162373,7.158,3680.5,3680.4,2.71709596]
[1754506164169,7.158,3680.5,3680.3,2.71712211]
[1754506164367,3.477,3680.5,3680.4,2.71709596]
[1754506164567,7.316,3680.6,3680.5,2.71702214]
[1754506164909,7.18,3680.6,3680.5,4.48140182]
[1754506165188,0.136,3680.9,3680.8,2.71680069]
[1754506165358,4.294,3681.1,3681.0,2.71665308]
[1754506166138,0.136,3681.1,3681.0,2.71665308]
[1754506166345,4.159,3681.3,3681.2,2.71650548]
[1754506166849,0.001,3681.3,3681.2,2.71650548]
[1754506169243,0.001,3681.3,3681.2,4.32088639]
[1754506169444,0.001,3681.3,3681.2,4.29372134]
[1754506169784,0.9413,3681.3,3681.2,2.71650548]
[1754506170287,1.0773,3681.3,3680.6,0.136]
[1754506170459,0.477,3681.2,3681.1,2.71657928]
[1754506170851,1.0618,3681.2,3681.1,2.71657928]
[1754506171053,10.23372439,3681.2,3680.2,0.002]
[1754506171385,12.5492879,3681.1,3680.4,2.71704641]
[1754506171679,3.0,3680.9,3680.3,2.71715125]
[1754506171885,3.0,3680.7,3680.3,2.71715125]
[1754506172084,3.0,3680.7,3680.4,2.71708043]
[1754506172282,3.0,3680.7,3680.5,2.71702214]
[1754506172283,0.9029,3680.6,3680.5,2.71702214]
[1754506172484,3.0,3680.7,3680.6,2.71694832]
[1754506172647,4.166,3680.8,3680.5,2.71702214]
[1754506172648,7.166,3680.8,3680.7,2.7168745]
[1754506172850,7.6201,3680.8,3680.7,2.7168745]
[1754506173291,7.6201,3680.8,3680.6,2.71692591]
[1754506173987,0.9029,3680.7,3680.6,2.71692591]
[1754506174192,0.9029,3680.7,3680.5,2.71699947]
[1754506174564,0.4488,3680.7,3680.5,2.71699947]
[1754506174889,0.9029,3680.6,3680.2,0.002]
[1754506175134,0.9029,3680.6,3680.4,2.71702916]
[1754506175310,0.4488,3680.6,3680.5,2.71702214]
[1754506175711,7.166,3680.8,3680.7,2.7168745]
[1754506175938,8.0689,3680.8,3680.2,0.002]
[1754506176826,8.0689,3680.8,3680.5,2.71699185]
[1754506177140,1.791451,3680.7,3680.3,2.71716979]
[1754506177305,0.9029,3680.6,3680.3,2.71716979]
[1754506177633,0.4541,3680.5,3680.4,2.71709596]
[1754506178732,0.9029,3680.5,3680.4,2.71709596]
[1754506179245,0.9029,3680.5,3680.3,2.71712716]
[1754506179423,0.4541,3680.4,3680.3,2.71712716]
[1754506179624,0.9029,3680.4,3680.3,2.71712716]
[1754506180014,0.4541,3680.4,3680.3,2.71712716]
[1754506180210,4.162,3680.6,3680.5,2.71702214]
[1754506180951,11.342,3680.7,3680.6,2.71694832]
[1754506181511,11.342,3680.7,3680.4,2.7170424]
[1754506181725,0.9029,3680.6,3680.4,2.7170424]
[1754506182013,1.0389,3680.5,3680.2,2.7192391]
[1754506182244,0.9029,3680.4,3680.3,2.71716979]
[1754506182953,0.4541,3680.4,3680.3,2.71716979]
[1754506183313,0.136,3680.5,3680.4,2.71709596]
[1754506183819,0.5901,3680.5,3680.4,2.71709596]
[1754506184518,1.0389,3680.5,3680.2,2.71923415]
[1754506184754,0.4541,3680.4,3680.2,2.71923415]
[1754506185152,0.4541,3680.4,3680.3,2.7171076]
[1754506185349,0.136,3680.5,3680.4,2.71709596]
[1754506185714,0.5901,3680.5,3680.3,2.7171378]
[1754506185942,0.9029,3680.4,3680.2,2.71923245]
[1754506186137,0.4541,3680.3,3680.2,2.71923245]
[1754506186350,17.96006979,3680.3,3680.2,0.002]
[1754506186521,21.01307057,3680.3,3680.2,0.002]
[1754506186720,2.71724362,3680.2,3680.1,0.002]
[1754506187121,3.62014362,3680.2,3680.1,0.002]
[1754506188724,0.9029,3680.2,3680.1,0.002]
[1754506189061,5.0669,3680.2,3680.1,0.002]
[1754506189350,6.86330219,3680.2,3680.1,0.002]
[1754506189569,16.17122658,3680.2,3680.1,0.002]
[1754506189726,18.8884702,3680.2,3680.1,0.002]
[1754506190058,16.17122658,3680.2,3680.1,0.002]
[1754506190255,18.8884702,3680.2,3680.1,0.002]
[1754506190446,19.7052932,3680.2,3680.1,0.002]
[1754506191623,16.98804958,3680.2,3680.1,0.002]
[1754506192225,19.7052932,3680.2,3680.1,0.002]
[1754506192422,16.98804958,3680.2,3680.1,0.002]
[1754506192758,19.7052932,3680.2,3680.1,0.002]
[1754506194033,16.98804958,3680.2,3680.1,0.002]
[1754506194369,16.53624958,3680.2,3680.1,0.002]
[1754506194728,19.7022932,3680.2,3680.1,0.002]
[1754506196091,3.26746514,3679.9,3679.8,0.002]
[1754506196385,13.293127,3679.9,3679.8,0.002]
[1754506196726,14.196027,3679.9,3679.8,0.002]
[1754506197078,14.304959,3679.9,3679.8,0.002]
[1754506198772,13.758959,3679.9,3679.8,0.002]
[1754506200541,5.97359386,3679.9,3679.8,0.002]
[1754506200736,10.13759386,3679.9,3679.8,0.002]
[1754506201173,17.31759386,3679.9,3679.8,0.002]
[1754506201586,13.15359386,3679.9,3679.8,0.002]
[1754506201787,14.588932,3679.9,3679.8,0.002]
[1754506204384,15.072032,3679.9,3679.8,0.002]
[1754506204589,18.22479714,3679.9,3679.8,0.002]
[1754506205288,14.588932,3679.9,3679.8,0.002]
[1754506206398,18.22479714,3679.9,3679.8,0.002]
[1754506206606,20.953459,3679.9,3679.8,0.002]
[1754506207505,18.23599386,3679.9,3679.8,0.002]
[1754506207703,20.953459,3679.9,3679.8,0.002]
[1754506208515,21.503459,3679.9,3679.8,0.002]
[1754506209181,2.71776056,3679.5,3679.4,0.002]
[1754506209404,17.44598262,3679.5,3679.4,0.002]
[1754506209608,18.36438262,3679.5,3679.4,0.002]
[1754506211324,18.47332162,3679.5,3679.4,0.002]
[1754506214099,17.55492162,3679.5,3679.4,0.002]
[1754506214300,18.03802162,3679.5,3679.4,0.002]
[1754506214701,18.47332162,3679.5,3679.4,0.002]
[1754506215194,4.411939,3679.5,3679.4,0.002]
[1754506215398,4.411939,3679.5,3679.4,0.9363]
[1754506215594,3.244939,3679.5,3679.4,0.9363]
[1754506215795,7.410939,3679.5,3679.4,0.002]
[1754506216024,8.329339,3679.5,3679.4,0.002]
[1754506216201,13.33456627,3679.5,3679.4,0.002]
[1754506218631,20.51456627,3679.5,3679.4,0.002]
[1754506218927,21.06456627,3679.5,3679.4,0.002]
[1754506219520,6.26783442,3679.4,3679.3,0.002]
[1754506219691,12.02598043,3679.1,3679.0,0.002]
[1754506219894,18.74416569,3679.1,3679.0,0.002]
[1754506220113,19.66256569,3679.1,3679.0,0.002]
[1754506220320,27.39256569,3679.1,3679.0,0.002]
[1754506220614,30.50152469,3679.1,3679.0,0.002]
[1754506222453,25.34922469,3679.1,3679.0,0.002]
[1754506222742,29.03412469,3679.1,3679.0,0.002]
[1754506223538,29.95252469,3679.1,3679.0,0.002]
[1754506224435,29.95252559,3679.1,3679.0,0.002]
[1754506225230,22.14806955,3679.1,3679.0,0.002]
[1754506225430,26.31406955,3679.1,3679.0,0.002]
[1754506225797,29.03212559,3679.1,3679.0,0.002]
[1754506226710,29.51522559,3679.1,3679.0,0.002]
[1754506227229,29.03212559,3679.1,3679.0,0.002]
[1754506228513,24.86612559,3679.1,3679.0,0.002]
[1754506228825,19.98485401,3679.1,3679.0,0.002]
[1754506229228,24.14785401,3679.1,3679.0,0.002]
[1754506229912,11.83992962,3679.1,3679.0,0.002]
[1754506230115,24.14785401,3679.1,3679.0,0.002]
[1754506230437,21.14785401,3679.1,3679.0,0.002]
[1754506230626,24.14785401,3679.1,3679.0,0.002]
[1754506231351,24.58159522,3679.1,3679.0,0.002]
[1754506231863,27.29965126,3679.1,3679.0,0.002]
[1754506232057,24.58159522,3679.1,3679.0,0.002]
[1754506232217,24.14785401,3679.1,3679.0,0.002]
[1754506233257,26.86591005,3679.1,3679.0,0.002]
[1754506233461,27.80421005,3679.1,3679.0,0.002]
[1754506233676,28.35421005,3679.1,3679.0,0.002]
[1754506233824,21.17421005,3679.1,3679.0,0.002]
[1754506234022,23.56342831,3679.1,3679.0,0.002]
[1754506234423,23.5634532,3679.1,3679.0,0.002]
[1754506236317,22.5720532,3679.1,3679.0,0.002]
[1754506236752,10.04817277,3679.1,3679.0,0.002]
[1754506236954,12.76622881,3679.1,3679.0,0.002]
[1754506237160,13.26312881,3679.1,3679.0,0.002]
[1754506237324,13.70452881,3679.1,3679.0,0.002]
[1754506237524,13.70468705,3679.1,3679.0,0.002]
[1754506237735,14.25468705,3679.1,3679.0,0.002]
[1754506240479,14.25477248,3679.1,3679.0,0.002]
[1754506244571,14.20477248,3679.1,3679.0,0.002]
[1754506245359,9.10447248,3679.1,3679.0,0.002]
[1754506245681,13.26647248,3679.1,3679.0,0.002]
[1754506246003,10.32725422,3679.1,3679.0,0.002]
[1754506246344,7.60919818,3679.1,3679.0,0.002]
[1754506246548,3.44719818,3679.1,3679.0,0.002]
[1754506246878,7.60919818,3679.1,3679.0,0.9687]
[1754506247078,3.194959,3679.1,3679.0,0.9687]
[1754506247288,7.356959,3679.1,3679.0,0.9687]
[1754506247650,7.356959,3679.1,3679.0,0.4981]
[1754506247982,10.07501504,3679.1,3679.0,0.002]
[1754506248478,7.356959,3679.1,3679.0,0.002]
[1754506248684,17.25501504,3679.1,3679.0,0.002]
[1754506249186,14.536959,3679.1,3679.0,0.002]
[1754506250791,10.374959,3679.1,3679.0,0.002]
[1754506251001,14.535959,3679.1,3679.0,0.002]
[1754506251161,14.535959,3679.1,3679.0,0.9687]
[1754506251686,14.535959,3679.1,3679.0,0.4981]
[1754506253961,14.535959,3679.1,3679.0,0.9687]
[1754506254382,14.535959,3679.1,3679.0,0.4981]
[1754506254585,14.535959,3679.1,3679.0,0.002]
[1754506255964,14.535959,3679.1,3679.0,0.4981]
[1754506257202,10.374959,3679.1,3679.0,0.4981]
[1754506257396,14.535959,3679.1,3679.0,0.4981]
[1754506258071,10.374959,3679.1,3679.0,0.002]
[1754506258393,14.535959,3679.1,3679.0,0.9687]
[1754506258601,14.535959,3679.1,3679.0,0.4981]
[1754506259283,14.535959,3679.1,3679.0,0.002]
[1754506261500,10.374959,3679.1,3679.0,2.72012992]
[1754506261798,10.374959,3679.1,3679.0,3.19722992]
[1754506261998,14.535959,3679.1,3679.0,1.11980843]
[1754506262205,14.535959,3679.1,3679.0,1.55190843]
[1754506263703,14.535959,3679.1,3679.0,0.9112]
[1754506264316,14.535959,3679.1,3679.0,3.62932992]
[1754506264468,14.535959,3679.1,3679.0,3.19722992]
[1754506264870,10.374959,3679.1,3679.0,3.19722992]
[1754506266513,11.341,3679.1,3679.0,4.26429063]
[1754506266716,11.341,3679.1,3679.0,3.83219063]
[1754506267083,11.341,3679.1,3679.0,3.35509063]
[1754506267799,11.341,3679.1,3679.0,4.26429063]
[1754506268309,11.341,3679.1,3679.0,3.83219063]
[1754506269807,11.341,3679.1,3679.0,4.26429063]
[1754506271530,11.341,3679.1,3679.0,0.63696071]
[1754506272426,11.341,3679.1,3679.0,0.002]
[1754506279139,11.341,3679.1,3679.0,2.72012992]
[1754506279835,11.341,3679.1,3679.0,0.002]
[1754506280831,7.18,3679.1,3679.0,2.72012992]
[1754506281133,3.0,3679.6,3679.1,2.71805443]
[1754506281331,3.0,3679.6,3679.2,1.22911544]
[1754506281521,0.136,3679.8,3679.7,2.71761284]
[1754506281729,4.296,3679.8,3679.7,2.71761284]
[1754506282638,4.16,3679.8,3679.7,2.71761284]
[1754506283005,4.16,3679.8,3679.5,2.71775679]
[1754506283206,4.64,3679.8,3679.6,2.71768536]
[1754506284451,4.64,3679.8,3679.7,2.71761284]
[1754506285240,4.64,3679.8,3679.6,2.71765781]
[1754506285443,0.9457,3679.7,3679.6,2.71765781]
[1754506285745,0.001,3679.9,3679.7,2.71761284]
[1754506285950,4.159,3679.8,3679.7,2.71761284]
[1754506287318,0.001,3679.9,3679.8,2.71753899]
[1754506287519,0.001,3679.9,3679.8,3.65391437]
[1754506287756,0.001,3679.9,3679.8,3.62673899]
[1754506288052,0.001,3679.9,3679.8,3.65391437]
[1754506288646,0.001,3679.9,3679.8,3.62673899]
[1754506288824,0.001,3679.9,3679.8,4.75115873]
[1754506289153,0.001,3679.9,3679.8,4.77833411]
[1754506289356,0.001,3679.9,3679.8,4.75115873]
[1754506292654,0.001,3679.9,3679.8,4.31905873]
[1754506293218,0.001,3679.9,3679.8,3.84195873]
[1754506295680,10.25812439,3679.9,3679.0,0.002]
[1754506295953,0.9492,3679.8,3679.7,2.71759503]
[1754506296760,0.9492,3679.8,3679.2,2.71791686]
[1754506296934,0.136,3679.6,3679.2,2.71791686]
[1754506297143,9.30792439,3679.5,3679.1,2.71803133]
[1754506297526,0.9492,3679.4,3679.0,2.72007679]
[1754506297721,1.0852,3679.3,3679.0,2.72007679]
[1754506298026,14.05858023,3679.5,3679.0,2.72007679]
[1754506298027,9.30792439,3679.1,3679.0,0.002]
[1754506298225,13.60092439,3679.1,3679.0,0.002]
[1754506298466,14.55012439,3679.1,3679.0,0.002]
[1754506298637,16.27694014,3679.1,3679.0,0.002]
[1754506298968,18.99499618,3679.1,3679.0,0.002]
[1754506299172,16.27694014,3679.1,3679.0,0.002]
[1754506302740,21.99499618,3679.1,3679.0,0.002]
[1754506304135,5.81201575,3679.1,3679.0,0.002]
[1754506304471,20.26918043,3679.1,3679.0,0.002]
[1754506305182,10.96125604,3679.1,3679.0,0.002]
[1754506305473,20.37812543,3679.1,3679.0,0.002]
[1754506306177,13.50206939,3679.1,3679.0,0.002]
[1754506306385,17.66006939,3679.1,3679.0,0.002]
[1754506307169,17.19156939,3679.1,3679.0,0.002]
[1754506307371,7.402945,3679.1,3679.0,0.002]
[1754506307565,7.883645,3679.1,3679.0,0.002]
[1754506308366,7.402945,3679.1,3679.0,0.002]
[1754506308810,7.402945,3679.1,3679.0,2.72012992]
[1754506309101,7.402945,3679.1,3679.0,3.72427732]
[1754506309102,4.158,3679.1,3679.0,3.72427732]
[1754506309278,4.158,3679.1,3679.0,4.19277732]
[1754506309807,4.158,3679.1,3679.0,3.72427732]
[1754506310013,0.136,3679.4,3679.3,2.71790829]
[1754506310303,0.136,3679.4,3679.3,3.36211641]
[1754506310512,1e-08,3679.9,3679.8,2.71753899]
[1754506310801,1e-08,3679.9,3679.8,6.90271437]
[1754506311001,1e-08,3679.9,3679.8,7.80413899]
[1754506311201,1e-08,3679.9,3679.8,8.85632156]
[1754506311388,1e-08,3679.9,3679.8,8.38782156]
[1754506311588,1e-08,3679.9,3679.8,8.85632156]
[1754506312408,1e-08,3680.9,3680.8,2.71680069]
[1754506312579,0.001,3681.5,3681.2,2.71650548]
[1754506312773,0.001,3681.5,3681.2,6.90167053]
[1754506313105,0.001,3681.5,3681.2,7.80310548]
[1754506314370,0.001,3681.5,3681.2,3.64510548]
[1754506314570,0.001,3681.5,3681.2,7.82827053]
[1754506314784,0.001,3681.5,3681.2,8.54904454]
[1754506315471,0.001,3681.5,3681.2,7.62044454]
[1754506315879,0.001,3681.5,3681.2,8.08054454]
[1754506316102,0.001,3681.5,3681.2,8.54904454]
[1754506317403,0.001,3681.5,3681.2,3.46444454]
[1754506317585,0.001,3681.5,3681.2,7.62044454]
[1754506319305,0.001,3681.5,3681.2,8.08054454]
[1754506319608,0.001,3681.5,3681.2,8.54904454]
[1754506320777,0.001,3681.5,3681.2,8.21654454]
[1754506321116,1e-08,3681.3,3681.2,9.20744454]
[1754506322578,1e-08,3681.3,3681.2,7.75544454]
[1754506323310,1e-08,3681.3,3681.2,8.24214454]
[1754506323524,1e-08,3681.3,3681.2,8.68304454]
[1754506324278,1e-08,3681.3,3681.2,7.75544454]
[1754506326622,1e-08,3681.3,3681.2,8.24214454]
[1754506326846,1e-08,3681.3,3681.2,8.68304454]
[1754506327024,1e-08,3681.3,3681.2,7.75544454]
[1754506327224,1e-08,3681.3,3681.2,8.68304454]
[1754506327423,1e-08,3681.3,3681.2,8.24214454]
[1754506327850,1e-08,3681.3,3681.2,8.68304454]
[1754506328645,1e-08,3681.3,3681.2,7.75544454]
[1754506337260,1e-08,3681.3,3681.2,3.60044454]
[1754506337462,1e-08,3681.3,3681.2,7.75444454]
[1754506338765,0.47950001,3681.3,3681.2,7.75344454]
[1754506340345,1e-08,3681.3,3681.2,7.75344454]
[1754506345084,1e-08,3681.3,3681.2,8.79014454]
[1754506345307,1e-08,3681.3,3681.2,8.65414454]
[1754506345493,1e-08,3681.3,3681.2,8.79014454]
[1754506345687,1e-08,3681.3,3681.2,8.30344454]
[1754506347477,1e-08,3681.3,3681.2,9.23104454]
[1754506349840,1e-08,3681.8,3681.7,3.26613656]
[1754506350036,0.4795,3683.2,3682.4,2.71562024]
[1754506350335,0.4805,3683.1,3683.0,2.71517784]
[1754506350513,0.001,3683.1,3683.0,6.86817784]
[1754506350701,0.001,3683.1,3683.0,8.10232545]
[1754506351900,0.9679,3683.1,3683.0,8.10232545]
[1754506352100,0.9679,3683.1,3683.0,7.00417784]
[1754506352501,0.501,3683.1,3683.0,7.00417784]
[1754506353644,0.9679,3683.1,3683.0,7.00417784]
[1754506354933,0.501,3683.1,3683.0,7.00417784]
[1754506355380,0.001,3683.1,3683.0,7.00417784]
[1754506355508,1e-08,3683.1,3683.0,8.79764833]